{"text_format":"3","workbook":"xlsx","n_sheets":1,"sheets":["Sheet1"],"not_rendered":{"external_links":1},"read":"whole","date_system":"1900"}

{"sheet":"Sheet1","index":0,"n_rows":444,"n_cols":3,"rows_kept":444}
["VERIFICATION"]
["Discripion ","Sonifex Redbox","Seriel Number"]
[{"$f":"VLOOKUP(#REF!,[1]AMR!A:B,3,0)","v":{"$error":"#REF!"}},"Receiver-Tran,AEQ MPAC-O2/AUDIOCODEC"]
[{"$f":"VLOOKUP(#REF!,[1]AMR!A:B,3,0)","v":{"$error":"#REF!"}},"Receiver-Tran,AEQ MPAC-O2/AUDIOCODEC"]
[{"$f":"VLOOKUP(#REF!,[1]AMR!A:B,3,0)","v":{"$error":"#REF!"}},"Receiver-Tran,AEQ MPAC-O2/AUDIOCODEC"]
[{"$f":"VLOOKUP(#REF!,[1]AMR!A:B,3,0)","v":{"$error":"#REF!"}},"Receiver-Tran,AEQ MPAC-O2/AUDIOCODEC"]
[{"$f":"VLOOKUP(#REF!,[1]AMR!A:B,3,0)","v":{"$error":"#REF!"}},"Receiver-Tran,AEQ MPAC-O2/AUDIOCODEC"]
[{"$f":"VLOOKUP(#REF!,[1]AMR!A:B,3,0)","v":{"$error":"#REF!"}},"Receiver-Tran,AEQ MPAC-O2/AUDIOCODEC"]
[{"$f":"VLOOKUP(#REF!,[1]AMR!A:B,3,0)","v":{"$error":"#REF!"}},"Receiver-Tran,AEQ MPAC-O2/AUDIOCODEC"]
[{"$f":"VLOOKUP(#REF!,[1]AMR!A:B,3,0)","v":{"$error":"#REF!"}},"Receiver-Tran,AEQ MPAC-O2/AUDIOCODEC"]
[{"$f":"VLOOKUP(#REF!,[1]AMR!A:B,3,0)","v":{"$error":"#REF!"}},"Receiver-Tran,AEQ MPAC-O2/AUDIOCODEC"]
[{"$f":"VLOOKUP(#REF!,[1]AMR!A:B,3,0)","v":{"$error":"#REF!"}},"Receiver-Tran,AEQ MPAC-O2/AUDIOCODEC"]
[{"$f":"VLOOKUP(#REF!,[1]AMR!A:B,3,0)","v":{"$error":"#REF!"}},"Portable Codec, AEQ MP AC-02"]
[{"$f":"VLOOKUP(#REF!,[1]AMR!A:B,3,0)","v":{"$error":"#REF!"}},"Portable Codec, AEQ MP AC-02"]
[{"$f":"VLOOKUP(#REF!,[1]AMR!A:B,3,0)","v":{"$error":"#REF!"}},"Portable Audio Codec, AEQ MPAC-02"]
[{"$f":"VLOOKUP(#REF!,[1]AMR!A:B,3,0)","v":{"$error":"#REF!"}},"Portable Audio Codec, AEQ MPAC-02"]
[{"$f":"VLOOKUP(#REF!,[1]AMR!A:B,3,0)","v":{"$error":"#REF!"}},"Flight Case"]
[{"$f":"VLOOKUP(#REF!,[1]AMR!A:B,3,0)","v":{"$error":"#REF!"}},"Mixer with Builtin Codecs, Prodys Nomada IP XL","12708/000411"]
["Mixer with Builtin Codecs, Prodys Nomada IP XL","Mixer with Builtin Codecs, Prodys Nomada IP XL","12708/000552"]
[{"$f":"VLOOKUP(#REF!,[1]AMR!A:B,3,0)","v":{"$error":"#REF!"}},"Mixer with Builtin Codecs, Prodys Nomada IP XL","12708/000550"]
[{"$f":"VLOOKUP(#REF!,[1]AMR!A:B,3,0)","v":{"$error":"#REF!"}},"Mixer with Builtin Codecs, Prodys Nomada IP XL","12708/000550"]
["Mixer with Builtin Codecs, Prodys Nomada IP XL","Mixer with Builtin Codecs, Prodys Nomada IP XL","12708/000512"]
[{"$f":"VLOOKUP(#REF!,[1]AMR!A:B,3,0)","v":{"$error":"#REF!"}},"HEADSET,  SENNHEISER"]
[{"$f":"VLOOKUP(#REF!,[1]AMR!A:B,3,0)","v":{"$error":"#REF!"}},"Recoder, Marantz PMD570","A1030619001876"]
[{"$f":"VLOOKUP(#REF!,[1]AMR!A:B,3,0)","v":{"$error":"#REF!"}},"\"TRANSMITTER,   MARTI RPT-30  REMOTE PICK-UP BRO\"",113]
[{"$f":"VLOOKUP(#REF!,[1]AMR!A:B,3,0)","v":{"$error":"#REF!"}},"CONSOLE, SOUN  ALLEN & HEATH AH-GL22 12 CH POR","L2K21222218185"]
[{"$f":"VLOOKUP(#REF!,[1]AMR!A:B,3,0)","v":{"$error":"#REF!"}},"TEST SET, AUD  NEUTRIK A1  AUDIO TEST SYSTEM W/",572]
[null,"Receiver,Marti CR-10",117]
[{"$f":"VLOOKUP(#REF!,[1]AMR!A:B,3,0)","v":{"$error":"#REF!"}},"CASE, STORAGE  THE CASE CONNECTION  RIGIDIZ",0]
[{"$f":"VLOOKUP(#REF!,[1]AMR!A:B,3,0)","v":{"$error":"#REF!"}},"Panel (audio and visual)",0]
[{"$f":"VLOOKUP(#REF!,[1]AMR!A:B,3,0)","v":{"$error":"#REF!"}},"RECEIVER, RAD  MARTI R-10/950  AURAL STUDIO-TX",3935]
[{"$f":"VLOOKUP(#REF!,[1]AMR!A:B,3,0)","v":{"$error":"#REF!"}},"RECEIVER, RAD  MARTI CR-10  REMOTE PICK-UP BROA",112]
[{"$f":"VLOOKUP(#REF!,[1]AMR!A:B,3,0)","v":{"$error":"#REF!"}},"Codec, AEQ Eagle ISDN - audio",0]
[{"$f":"VLOOKUP(#REF!,[1]AMR!A:B,3,0)","v":{"$error":"#REF!"}},"Camera, Vista NCL1400",419775]
[{"$f":"VLOOKUP(#REF!,[1]AMR!A:B,3,0)","v":{"$error":"#REF!"}},"Patch panel",66428]
[{"$f":"VLOOKUP(#REF!,[1]AMR!A:B,3,0)","v":{"$error":"#REF!"}},"Patch panel",66428]
[{"$f":"VLOOKUP(#REF!,[1]AMR!A:B,3,0)","v":{"$error":"#REF!"}},"\"TRANSMITTER,   MARTI RPT-30  REMOTE PICK-UP BRO\"",980809474]
[{"$f":"VLOOKUP(#REF!,[1]AMR!A:B,3,0)","v":{"$error":"#REF!"}},"Stereo Generator, SC204","V-32523"]
[{"$f":"VLOOKUP(#REF!,[1]AMR!A:B,3,0)","v":{"$error":"#REF!"}},"Transmitter, STL 7750","V-38446"]
[{"$f":"VLOOKUP(#REF!,[1]AMR!A:B,3,0)","v":{"$error":"#REF!"}},"Recorder, Tascam DA302 DAT ",100278]
[{"$f":"VLOOKUP(#REF!,[1]AMR!A:B,3,0)","v":{"$error":"#REF!"}},"CD Player,Revox C221",1934]
[{"$f":"VLOOKUP(#REF!,[1]AMR!A:B,3,0)","v":{"$error":"#REF!"}},"Codec, Audio Codec AEQ Phonics",63450]
[{"$f":"VLOOKUP(#REF!,[1]AMR!A:B,3,0)","v":{"$error":"#REF!"}},"Codec, Audio Codec AEQ Phonics",63469]
[{"$f":"VLOOKUP(#REF!,[1]AMR!A:B,3,0)","v":{"$error":"#REF!"}},"MIXER GLENSOUND GSGC5K ISDN",132]
[{"$f":"VLOOKUP(#REF!,[1]AMR!A:B,3,0)","v":{"$error":"#REF!"}},"Mixer, Glensound GSGC5K - ISDN",111]
[{"$f":"VLOOKUP(#REF!,[1]AMR!A:B,3,0)","v":{"$error":"#REF!"}},"Stereo, Marantz"]
[{"$f":"VLOOKUP(#REF!,[1]AMR!A:B,3,0)","v":{"$error":"#REF!"}},"Reproducer, Tascam CD-450 Compact disk"]
[{"$f":"VLOOKUP(#REF!,[1]AMR!A:B,3,0)","v":{"$error":"#REF!"}},"RECEIVER, RAD  MARTI CR-10  REMOTE PICK-UP BROA"]
[{"$f":"VLOOKUP(#REF!,[1]AMR!A:B,3,0)","v":{"$error":"#REF!"}},"RECORDER-REPR  SONY MDS-B5  MINIDISC RECORDER/PLAY",501216]
[{"$f":"VLOOKUP(#REF!,[1]AMR!A:B,3,0)","v":{"$error":"#REF!"}},"Telos Xtrem","74T1725"]
[{"$f":"VLOOKUP(#REF!,[1]AMR!A:B,3,0)","v":{"$error":"#REF!"}},"Cassette Player,Technics","RF800818"]
[{"$f":"VLOOKUP(#REF!,[1]AMR!A:B,3,0)","v":{"$error":"#REF!"}},"Recorder,Marantz PMD570 Professional","A1040622002043"]
[{"$f":"VLOOKUP(#REF!,[1]AMR!A:B,3,0)","v":{"$error":"#REF!"}},"Processor, Yamaha SPX100 Professional","JK04022"]
[null,"PROSOUND CASE"]
[{"$f":"VLOOKUP(#REF!,[1]AMR!A:B,3,0)","v":{"$error":"#REF!"}},"AMPLIFIER-MIX AEQ-10 PORTABLE AUDIO MIXER"]
[{"$f":"VLOOKUP(#REF!,[1]AMR!A:B,3,0)","v":{"$error":"#REF!"}},"MONITOR SONY "]
[{"$f":"VLOOKUP(#REF!,[1]AMR!A:B,3,0)","v":{"$error":"#REF!"}},"PROJECTOR",706310]
[{"$f":"VLOOKUP(#REF!,[1]AMR!A:B,3,0)","v":{"$error":"#REF!"}},"Mixer, Glensound GSGC5K - ISDN",162]
[{"$f":"VLOOKUP(#REF!,[1]AMR!A:B,3,0)","v":{"$error":"#REF!"}},"PRINTER, CANON","KPP50715"]
[{"$f":"VLOOKUP(#REF!,[1]AMR!A:B,3,0)","v":{"$error":"#REF!"}},"Recoder, Marantz PMD570","A1040622002017"]
[{"$f":"VLOOKUP(#REF!,[1]AMR!A:B,3,0)","v":{"$error":"#REF!"}},"RECEIVER, RAD  MARTI CR-10  REMOTE PICK-UP BROA",116]
[{"$f":"VLOOKUP(#REF!,[1]AMR!A:B,3,0)","v":{"$error":"#REF!"}},"Receiver STL"]
[{"$f":"VLOOKUP(#REF!,[1]AMR!A:B,3,0)","v":{"$error":"#REF!"}},"Computer Syst  Inception Intel P4 800 'Rack' Works"]
[{"$f":"VLOOKUP(#REF!,[1]AMR!A:B,3,0)","v":{"$error":"#REF!"}},"Processor, PCM 80 Digital Effects Processor",0]
[{"$f":"VLOOKUP(#REF!,[1]AMR!A:B,3,0)","v":{"$error":"#REF!"}},"Computer, Desktop Case Yamaha","900008-735235"]
[{"$f":"VLOOKUP(#REF!,[1]AMR!A:B,3,0)","v":{"$error":"#REF!"}},"Processor, Drawmer DL251",2151]
[{"$f":"VLOOKUP(#REF!,[1]AMR!A:B,3,0)","v":{"$error":"#REF!"}},"Processor, Drawmer DL251",1769]
[{"$f":"VLOOKUP(#REF!,[1]AMR!A:B,3,0)","v":{"$error":"#REF!"}},"Processor, Drawmer DL251",1107]
[{"$f":"VLOOKUP(#REF!,[1]AMR!A:B,3,0)","v":{"$error":"#REF!"}},"Recorder, Denon DN-C680 Professional CD Player",51502499]
[{"$f":"VLOOKUP(#REF!,[1]AMR!A:B,3,0)","v":{"$error":"#REF!"}},"RECORDER-REPR  SONY MDS-E12  MINIDISK RECORDER",702899]
[{"$f":"VLOOKUP(#REF!,[1]AMR!A:B,3,0)","v":{"$error":"#REF!"}},"AOUDIOCODEC, PHOENIX AEQ",63440]
[{"$f":"VLOOKUP(#REF!,[1]AMR!A:B,3,0)","v":{"$error":"#REF!"}},"SPEAKER, EV",0]
[{"$f":"VLOOKUP(#REF!,[1]AMR!A:B,3,0)","v":{"$error":"#REF!"}},"SPEAKER, EV",0]
[{"$f":"VLOOKUP(#REF!,[1]AMR!A:B,3,0)","v":{"$error":"#REF!"}},"RECODER,SONY S707ES",300620]
["diversity receiver FR","Diversity receiver",107806]
[{"$f":"VLOOKUP(#REF!,[1]AMR!A:B,3,0)","v":{"$error":"#REF!"}},"Cable drum, Power cable drum 20m",{"$error":"#N/A"}]
[{"$f":"VLOOKUP(#REF!,[1]AMR!A:B,3,0)","v":{"$error":"#REF!"}},"Cable drum, Power cable drum 20m",{"$error":"#N/A"}]
[{"$f":"VLOOKUP(#REF!,[1]AMR!A:B,3,0)","v":{"$error":"#REF!"}},"Cable drum, Power cable drum 20m",0]
[{"$f":"VLOOKUP(#REF!,[1]AMR!A:B,3,0)","v":{"$error":"#REF!"}},"Reproducer, Tascam CD-450 Compact disk","9X00227"]
[{"$f":"VLOOKUP(#REF!,[1]AMR!A:B,3,0)","v":{"$error":"#REF!"}},"Receiver ,Shure ULXP4",0]
[{"$f":"VLOOKUP(#REF!,[1]AMR!A:B,3,0)","v":{"$error":"#REF!"}},"POWER SUPPLY   SOUNDCRAFT CPS150  POWER SUPPLY UNI",26700]
[{"$f":"VLOOKUP(#REF!,[1]AMR!A:B,3,0)","v":{"$error":"#REF!"}},"Codec, Tieline Commender G3ISDN",15232]
[{"$f":"VLOOKUP(#REF!,[1]AMR!A:B,3,0)","v":{"$error":"#REF!"}},"INTERCOMMUNIC  NERA M4 WORLDCOMMUNICATOR UNIT","76EB7140FF38"]
[{"$f":"VLOOKUP(#REF!,[1]AMR!A:B,3,0)","v":{"$error":"#REF!"}},"RECEIVER-TRAN ,AEQ TLE-02D",49167]
[{"$f":"VLOOKUP(#REF!,[1]AMR!A:B,3,0)","v":{"$error":"#REF!"}},"CASE, STORAGE  CUSTOM CASE  ALUMINIUM STORAGE C",0]
[{"$f":"VLOOKUP(#REF!,[1]AMR!A:B,3,0)","v":{"$error":"#REF!"}},"AMPLIFIER'  CREST PERFORMANCE CPX-1500  DUAL CH",0]
[{"$f":"VLOOKUP(#REF!,[1]AMR!A:B,3,0)","v":{"$error":"#REF!"}},"Monitor Speaker,Studer A523",0]
[{"$f":"VLOOKUP(#REF!,[1]AMR!A:B,3,0)","v":{"$error":"#REF!"}},"RECEIVER-TRAN  AEQ ACD-6001 EA",44647]
[{"$f":"VLOOKUP(#REF!,[1]AMR!A:B,3,0)","v":{"$error":"#REF!"}},"Receiver, AEQ ACD-6001",44615]
[{"$f":"VLOOKUP(#REF!,[1]AMR!A:B,3,0)","v":{"$error":"#REF!"}},"\"Bag, reinforce nylon padded bag with pocket\"",0]
[{"$f":"VLOOKUP(#REF!,[1]AMR!A:B,3,0)","v":{"$error":"#REF!"}},"\"Bag, reinforce nylon padded bag with pocket\"",0]
[{"$f":"VLOOKUP(#REF!,[1]AMR!A:B,3,0)","v":{"$error":"#REF!"}},"\"Bag, reinforce nylon padded bag with pocket\"",0]
[{"$f":"VLOOKUP(#REF!,[1]AMR!A:B,3,0)","v":{"$error":"#REF!"}},"\"Bag, reinforce nylon padded bag with pocket\"",0]
[{"$f":"VLOOKUP(#REF!,[1]AMR!A:B,3,0)","v":{"$error":"#REF!"}},"\"Bag, reinforce nylon padded bag with pocket\"",0]
[{"$f":"VLOOKUP(#REF!,[1]AMR!A:B,3,0)","v":{"$error":"#REF!"}},"\"Bag, reinforce nylon padded bag with pocket\"",0]
[{"$f":"VLOOKUP(#REF!,[1]AMR!A:B,3,0)","v":{"$error":"#REF!"}},"\"Bag, reinforce nylon padded bag with pocket\"",0]
[{"$f":"VLOOKUP(#REF!,[1]AMR!A:B,3,0)","v":{"$error":"#REF!"}},"\"Bag, reinforce nylon padded bag with pocket\"",0]
[{"$f":"VLOOKUP(#REF!,[1]AMR!A:B,3,0)","v":{"$error":"#REF!"}},"\"Bag, reinforce nylon padded bag with pocket\"",0]
[{"$f":"VLOOKUP(#REF!,[1]AMR!A:B,3,0)","v":{"$error":"#REF!"}},"\"Bag, reinforce nylon padded bag with pocket\"",0]
[{"$f":"VLOOKUP(#REF!,[1]AMR!A:B,3,0)","v":{"$error":"#REF!"}},"\"Generator, Bundu Power IG60- silent /petrol\"",0]
[{"$f":"VLOOKUP(#REF!,[1]AMR!A:B,3,0)","v":{"$error":"#REF!"}},"RECORDER-REPR  MARANTZ PMD570  PROFESSIONAL RACKMO","A1040622002043"]
[{"$f":"VLOOKUP(#REF!,[1]AMR!A:B,3,0)","v":{"$error":"#REF!"}},"RECORDER-REPR  MARANTZ PMD570  PROFESSIONAL RACKMO","A1040622002029"]
[{"$f":"VLOOKUP(#REF!,[1]AMR!A:B,3,0)","v":{"$error":"#REF!"}},"RECORDER-REPR  MARANTZ PMD570  PROFESSIONAL RACKMO","A1040622002033"]
[{"$f":"VLOOKUP(#REF!,[1]AMR!A:B,3,0)","v":{"$error":"#REF!"}},"RECORDER-REPR  MARANTZ PMD570  PROFESSIONAL RACKMO","A1040622002030"]
[{"$f":"VLOOKUP(#REF!,[1]AMR!A:B,3,0)","v":{"$error":"#REF!"}},"RECORDER-REPR  MARANTZ PMD570  PROFESSIONAL RACKMO","A1030619001808"]
[{"$f":"VLOOKUP(#REF!,[1]AMR!A:B,3,0)","v":{"$error":"#REF!"}},"RECORDER-REPR  MARANTZ PMD570  PROFESSIONAL RACKMO","A1040622002026"]
[{"$f":"VLOOKUP(#REF!,[1]AMR!A:B,3,0)","v":{"$error":"#REF!"}},"RECORDER-REPR  MARANTZ PMD570  PROFESSIONAL RACKMO","A1040622002035"]
[{"$f":"VLOOKUP(#REF!,[1]AMR!A:B,3,0)","v":{"$error":"#REF!"}},"RECORDER-REPR  MARANTZ PMD570  PROFESSIONAL RACKMO","A1040622002017"]
[{"$f":"VLOOKUP(#REF!,[1]AMR!A:B,3,0)","v":{"$error":"#REF!"}},"PRODY'S NOMADLA IP XL 3G",0]
[{"$f":"VLOOKUP(#REF!,[1]AMR!A:B,3,0)","v":{"$error":"#REF!"}},"PRODY'S NOMADLA IP XL 3G",0]
[{"$f":"VLOOKUP(#REF!,[1]AMR!A:B,3,0)","v":{"$error":"#REF!"}},"PRODY'S NOMADLA IP XL 3G",0]
[{"$f":"VLOOKUP(#REF!,[1]AMR!A:B,3,0)","v":{"$error":"#REF!"}},"PRODY'S NOMADLA IP XL 3G",0]
[{"$f":"VLOOKUP(#REF!,[1]AMR!A:B,3,0)","v":{"$error":"#REF!"}},"PRODY'S NOMADLA IP XL 3G",0]
[{"$f":"VLOOKUP(#REF!,[1]AMR!A:B,3,0)","v":{"$error":"#REF!"}},"PRODY'S NOMADLA IP XL 3G",0]
[{"$f":"VLOOKUP(#REF!,[1]AMR!A:B,3,0)","v":{"$error":"#REF!"}},"PRODY'S NOMADLA IP XL 3G",0]
[{"$f":"VLOOKUP(#REF!,[1]AMR!A:B,3,0)","v":{"$error":"#REF!"}},"PRODY'S NOMADLA IP XL 3G",0]
[{"$f":"VLOOKUP(#REF!,[1]AMR!A:B,3,0)","v":{"$error":"#REF!"}},"PRODY'S NOMADLA IP XL 3G",0]
[{"$f":"VLOOKUP(#REF!,[1]AMR!A:B,3,0)","v":{"$error":"#REF!"}},"\"Module, Digigram VX Pocket V2  audio card\"",0]
[{"$f":"VLOOKUP(#REF!,[1]AMR!A:B,3,0)","v":{"$error":"#REF!"}},"\"Module, Digigram VX Pocket V2  audio card\"",0]
[{"$f":"VLOOKUP(#REF!,[1]AMR!A:B,3,0)","v":{"$error":"#REF!"}},"\"Module, Digigram VX Pocket V2  audio card\"",0]
[{"$f":"VLOOKUP(#REF!,[1]AMR!A:B,3,0)","v":{"$error":"#REF!"}},"\"Module, Digigram VX Pocket V2  audio card\"",0]
[{"$f":"VLOOKUP(#REF!,[1]AMR!A:B,3,0)","v":{"$error":"#REF!"}},"\"Module, Digigram VX Pocket V2  audio card\"",0]
[{"$f":"VLOOKUP(#REF!,[1]AMR!A:B,3,0)","v":{"$error":"#REF!"}},"\"Module, Digigram VX Pocket V2  audio card\"",0]
[{"$f":"VLOOKUP(#REF!,[1]AMR!A:B,3,0)","v":{"$error":"#REF!"}},"\"Module, Digigram VX Pocket V2  audio card\"",0]
[{"$f":"VLOOKUP(#REF!,[1]AMR!A:B,3,0)","v":{"$error":"#REF!"}},"\"Module, Digigram VX Pocket V2  audio card\"",0]
[{"$f":"VLOOKUP(#REF!,[1]AMR!A:B,3,0)","v":{"$error":"#REF!"}},"\"Module, Digigram VX Pocket V2  audio card\"",0]
[{"$f":"VLOOKUP(#REF!,[1]AMR!A:B,3,0)","v":{"$error":"#REF!"}},"\"Module, Digigram VX Pocket V2  audio card\"",0]
[{"$f":"VLOOKUP(#REF!,[1]AMR!A:B,3,0)","v":{"$error":"#REF!"}},"\"Module, Digigram VX Pocket V2  audio card\"",0]
[{"$f":"VLOOKUP(#REF!,[1]AMR!A:B,3,0)","v":{"$error":"#REF!"}},"\"Module, Digigram VX Pocket V2  audio card\"",0]
[{"$f":"VLOOKUP(#REF!,[1]AMR!A:B,3,0)","v":{"$error":"#REF!"}},"\"Module, Digigram VX Pocket V2  audio card\"",0]
["2 DRAWER + 1DEEP FILER DESK","Fridge, Fridge Master"]
["Console, Mixer Soundcraft","Console, Mixer Soundcraft RM105"]
["CASE, STORAGE  ALPINE  RIGIDIZED ALUMINIUM CARR","CASE, STORAGE  ALPINE  RIGIDIZED ALUMINIUM CARR"]
[{"$error":"#N/A"},"Console, Datalite"]
["Subwoofer processor, Panasonic WS-SP2AC","Subwoofer processor, Panasonic WS-SP2AC","91Y0043"]
[{"$error":"#N/A"},"Console Power Supply, Soundcraft"]
["INTERCOMMUNIC  COMMPAC NOREF  INTERCOMMUNICATION S","INTERCOMMUNIC  COMMPAC NOREF  INTERCOMMUNICATION S"]
[{"$error":"#N/A"},"Headset, Prosound Commset"]
[{"$error":"#N/A"},"Headset, Prosound Commset"]
["Control - Audio","Control - Audio, Prosound Compac"]
["Control - Audio","Control - Audio, Prosound Compac"]
["PROSOUND COMMPAC PSU-10","PROSOUND COMMPAC PSU-10"]
["LIGHT ASSEMBL  SABC DIS4824/2370A  RAG LIGHT  W/ S","Flight Case"]
["Monitor, Marshall V-LCD15 15 LCD screen","Monitor, Marshall V-LCD15 15 LCD screen"]
["Monitor, Marshall V-LCD15 15 LCD screen","Monitor, Marshall V-LCD15 15 LCD screen"]
["Computer, Destop case HP ","Computer, Destop case HP ","CZC5141SXQ"]
["Monitor, Marshall V-LCD15 15 LCD screen","Monitor, Marshall V-LCD15 15 LCD screen","08-15R00425"]
["Monitor, Marshall V-LCD15 15 LCD screen","Monitor, Marshall V-LCD15 15 LCD screen","08-15R00434"]
["AMPLIFIER-MIX  AEQ MP-10  PORTABLE AUDIO MIXER","AMPLIFIER-MIX  AEQ MP-10  PORTABLE AUDIO MIXER"]
["RECORDER, SOU  SONY MDS-B5  MINI DISC RECORDER","RECORDER, SOU  SONY MDS-B5  MINI DISC RECORDER",500804]
["RECORDER, SOU  SONY MDS-B5  MINI DISC RECORDER","RECORDER, SOU  SONY MDS-B5  MINI DISC RECORDER",502300]
["AMPLIFIER-MIX  AEQ MP-10  PORTABLE AUDIO MIXER","AMPLIFIER-MIX  AEQ MP-10  PORTABLE AUDIO MIXER"]
["AMPLIFIER-MIX  AEQ MP-10  PORTABLE AUDIO MIXER","AMPLIFIER-MIX  AEQ MP-10  PORTABLE AUDIO MIXER",10801]
["Headphone Amplifier, SoundFusion","Headphone Amplifier, SoundFusion"]
["Headphone Amplifier, SoundFusion","Headphone Amplifier, SoundFusion"]
["NETWORK, HYBR  GENTNER DIGITAL","NETWORK, HYBR  GENTNER DIGITAL"]
["Amplifier, AEQ-10 Portable mixer","Amplifier, AEQ-10 Portable mixer"]
["Multi Headphone amplifier, Tascam MH-40B","Multi Headphone amplifier, Tascam MH-40B"]
["AMPLIFIER-MIX  AEQ MP-10  PORTABLE AUDIO MIXER","AMPLIFIER-MIX  AEQ MP-10  PORTABLE AUDIO MIXER",610095]
["Computer, desktop Monitor LG Flatron L1770HQ-WF","Computer, desktop Monitor LG Flatron L1770HQ-WF","606KGFJ2X499"]
["RECORDER-REPR  TASCAM DA-88  DIGITAL AUDIO RECORDI","RECORDER-REPR  TASCAM DA-88  DIGITAL AUDIO RECORDI","IMP17/290244"]
["RECORDER-REPR  TASCAM DA-88  DIGITAL AUDIO RECORDI","RECORDER-REPR  TASCAM DA-88  DIGITAL AUDIO RECORDI","IMP17/290290"]
["CONSOLE, SOUN  DDA D SERIES  STEREO/MONO AUDIO","RECORDER-REPR  TASCAM DA-88  DIGITAL AUDIO RECORDI",290261]
["AMPLIFIER-MIX  AEQ MP-10  PORTABLE AUDIO MIXER","AMPLIFIER-MIX  AEQ MP-10  PORTABLE AUDIO MIXER"]
["Furniture, Filing Cabinet - 2 Door","Furniture, Filing Cabinet - 2 Door"]
["Computer, Desktop monitor philips","Computer, Desktop monitor philips"]
["Television, Quintrix","Television, Quintrix"]
["AMPLIFIER, AU  SOUNDFUSION SF2","AMPLIFIER, AU  SOUNDFUSION SF2",1024]
["AMPLIFIER, AU  SOUNDFUSION NOREF  HEADPHONE AMP F","AMPLIFIER, AU  SOUNDFUSION NOREF  HEADPHONE AMP F","VD406008"]
["AMPLIFIER, AU  SOUNDFUSION SF2","AMPLIFIER, AU  SOUNDFUSION SF2",1026]
["AMPLIFIER, AU  SOUNDFUSION SF2","AMPLIFIER, AU  SOUNDFUSION SF2"]
["AMPLIFIER, AU  SOUNDFUSION   HEADPHONE DISTRIBUTI","AMPLIFIER, AU  SOUNDFUSION   HEADPHONE DISTRIBUTI","V-82"]
["AMPLIFIER, AU  SOUNDFUSION SF2","AMPLIFIER, AU  SOUNDFUSION SF2"]
["AMPLIFIER, AU  SOUNDFUSION   HEADPHONE DISTRIBUTI","AMPLIFIER, AU  SOUNDFUSION   HEADPHONE DISTRIBUTI"]
["AMPLIFIER, AU  SOUNDFUSION   HEADPHONE DISTRIBUTI","AMPLIFIER, AU  SOUNDFUSION   HEADPHONE DISTRIBUTI"]
["Comms unit","Comms unit"]
["AMPLIFIER-MIX  SOUNDCRAFT SPIRIT POWERSTATION  AUD","AMPLIFIER-MIX  SOUNDCRAFT SPIRIT POWERSTATION  AUD"]
["CONSOLE, SOUN  SOUNDCRAFT RM100  EXTENDER MONO","CONSOLE, SOUN  SOUNDCRAFT RM100  EXTENDER MONO"]
["EQUALIZER'  SCV AUDIO 209","EQUALIZER'  SCV AUDIO 209"]
["AMPLIFIER, AU  SOUNDFUSION   HEADPHONE DISTRIBUTI","AMPLIFIER, AU  SOUNDFUSION   HEADPHONE DISTRIBUTI"]
["RECORDER-REPR  SONY MDS-B5  MINIDISC RECORDER/PLAY","RECORDER-REPR  SONY MDS-B5  MINIDISC RECORDER/PLAY",501236]
["RECORDER-REPR  SONY MDS-B5  MINIDISC RECORDER/PLAY","RECORDER-REPR  SONY MDS-B5  MINIDISC RECORDER/PLAY",501254]
["Amplifirier, Tascam headphone amp","Amplifirier, Tascam headphone amp",60005]
["Amplifirier, Tascam headphone amp","Amplifirier, Tascam headphone amp",610096]
["Recorder, Reproducer Sound Nagra E-D","Recorder, Reproducer Sound Nagra E-D"]
["Recorder, Reproducer Sound Nagra E-D","Recorder, Reproducer Sound Nagra E-D"]
["RECORDER-REPR  NAGRA E-D  6, 3 MM TAPE  FULL TRA","RECORDER-REPR  NAGRA E-D  6, 3 MM TAPE  FULL TRA",203106]
["Receiver, Trans AEQ  MPAC-02 Portable","Receiver, Trans AEQ  MPAC-02 Portable"]
["Recorder, Reproducer Sound Nagra E-D","Recorder, Reproducer Sound Nagra E-D"]
[{"$error":"#N/A"},"consol,sound craft mbi"]
["CONSOLE, SOUN  SOUNDCRAFT SAC20 ON-AIR AUDI","CONSOLE, SOUN  SOUNDCRAFT SAC20 ON-AIR AUDI",789076]
["RECORDER-REPR  NAGRA 4, 2 TYPE NQ-LSP  1 TRACK","RECORDER-REPR  NAGRA 4, 2 TYPE NQ-LSP  1 TRACK","L14379"]
["AMPLIFIER, AU  SOUNDFUSION   HEADPHONE DISTRIBUTI","AMPLIFIER, AU  SOUNDFUSION   HEADPHONE DISTRIBUTI"]
["\"MICROPHONE, C  CALREC CM1001C  OMNIDIRECTIONAL\"","\"MICROPHONE, C  CALREC CM1001C  OMNIDIRECTIONAL\"","V-2105"]
["Case, Flight case","Case, Flight case"]
["Panel Patch ADC PPB1-HN-CG Stereo","Panel Patch ADC PPB1-HN-CG Stereo"]
["Panel Patch ADC PPB1-HN-CG Stereo","Panel Patch ADC PPB1-HN-CG Stereo"]
["Receiver, AEQ Transreceiver ACD-6001","Receiver, AEQ Transreceiver ACD-6001"]
["GENERATOR, SI  LINDOS LA101  AUDIO OSCILLATOR","GENERATOR, SI  LINDOS LA101  AUDIO OSCILLATOR"]
["Equipment rack","Equipment rack"]
["Computer, Desktop Monitor Box Mercer","Computer, Desktop Monitor Box Mercer",920333]
["Equipment rack","Equipment rack"]
["Stand, camera stand","Stand, camera stand"]
["REPRODUCER, S  DENON DN-961  BROADCAST CD PLAYE","REPRODUCER, S  DENON DN-961  BROADCAST CD PLAYE",8019502699]
["REPRODUCER, S  DENON DN-961  BROADCAST CD PLAYE","REPRODUCER, S  DENON DN-961  BROADCAST CD PLAYE",8091502695]
["Generator - UPS","Generator - UPS"]
["Generator - UPS","Generator - UPS"]
["TELVISION, HI SENSE 30","TELVISION, HI SENSE 30"]
["Interface, Studer","Interface, Studer"]
["Interface, Studer","Interface, Studer"]
["PROCESSOR, SI  ORBAN 536A  DE-","PROCESSOR, SI  ORBAN 536A  DE-"]
["Amplifier, Distribution amp soundfusion","Amplifier, Distribution amp soundfusion",842133]
["CASE, STORAGE  CUSTOM CASE  ALUMINIUM STORAGE C","CASE, STORAGE  CUSTOM CASE  ALUMINIUM STORAGE C"]
["Professional Power Amplifier, Model 250G","Professional Power Amplifier, Model 250G"]
["Macro-Tech 2400, Crown","Macro-Tech 2400, Crown"]
[{"$error":"#N/A"},"vinal Player technics"]
["flight case ","flight case "]
[{"$error":"#N/A"},"Mixer,soundcraft rm100"]
[{"$error":"#N/A"},"car stereo,Sony 45*4"]
[{"$error":"#N/A"},"car stereo,Sony 45*4"]
[{"$error":"#N/A"},"car stereo,Sony 45*4"]
[{"$error":"#N/A"},"car stereo,Sony 45*4"]
[{"$error":"#N/A"},"car stereo,Sony 45*4"]
[{"$error":"#N/A"},"car stereo,Sony 45*4"]
[{"$error":"#N/A"},"car stereo,Sony 45*4"]
[{"$error":"#N/A"},"car stereo,Sony 45*4"]
[{"$error":"#N/A"},"car stereo,Sony 45*4"]
[{"$error":"#N/A"},"car stereo,Sony 45*4"]
["INTERCOMMUNIC  NERA M4 WORLDCOMMUNICATOR UNIT","INTERCOMMUNIC  NERA M4 WORLDCOMMUNICATOR UNIT","76EB70D49290"]
["INTERCOMMUNIC  NERA M4 WORLDCOMMUNICATOR UNIT","INTERCOMMUNIC  NERA M4 WORLDCOMMUNICATOR UNIT"]
["INTERCOMMUNIC  NERA M4 WORLDCOMMUNICATOR UNIT","INTERCOMMUNIC  NERA M4 WORLDCOMMUNICATOR UNIT","76EB72416E59"]
["Soundcraft console power supply cps 150","Soundcraft console power supply cps 150"]
[{"$error":"#N/A"},"Mixer,xone 464"]
[{"$error":"#N/A"},"Dual cd player,tascam cd302"]
[{"$error":"#N/A"},"Dual cd player,tascam cd302"]
["Case, Rigidized Aluminium for rack  /w castorba","Case, Rigidized Aluminium for rack  /w castorba"]
["Laptop, HP","Laptop,HP Compaq 8510P","CNU8221WF9"]
["Laptop, HP","Laptop,HP Compaq 8510P","CNU8221WF1"]
["Laptop, HP","Laptop,HP Compaq 8510P","CNU8221WG9"]
["Laptop, HP","Laptop,HP Compaq 8510P","CNU8221WF3"]
["Laptop, HP","Laptop,HP Compaq 8510P","CNU8221WFW"]
["Laptop, HP","Laptop,HP Compaq 8510P","CNU8221WG5"]
["Laptop, HP","Laptop,HP Compaq 8510P","CNU8221WDX"]
["Laptop, HP","Laptop,HP Compaq 8510P","CNU8221Y0V"]
["Laptop, HP","Laptop,HP Compaq 8510P","CNU8221WFG"]
["Laptop, HP","Laptop,HP Compaq 8510P","CNU8221WDD"]
["Monitor, Fostex 6301BS audio","Monitor, Fostex 6301BS audio"]
["Monitor, Panasonic  WS-A240 Subwoofer","Monitor, Panasonic  WS-A240 Subwoofer"]
["Macro-Tech 2400, Crown","Macro-Tech 2400, Crown"]
[{"$error":"#N/A"},"Power Supplier, Data light"]
["Microphone control Unit, Soundfusion","Microphone control Unit, Soundfusion"]
["Video Wise 3000","Video Wise 3000"]
["RECORDER-REPR  OTARI MR-10  MI","RECORDER-REPR  OTARI MR-10  MI","795A1046C"]
["Console, Radi Mixer-12","Console, Radi Mixer-12"]
["Power Supply and Accessories","Power Supply and Accessories","IMP17/V-37230"]
["Console, Mixer","Console, Mixer"]
["Panel Patch ADC PPB1-HN-CG Stereo","Panel Patch ADC PPB1-HN-CG Stereo"]
["Panel Patch ADC PPB1-HN-CG Stereo","Panel Patch ADC PPB1-HN-CG Stereo"]
[{"$error":"#N/A"},"Telephne aswering system with facsimile, Panasonic"]
["AMPLIFIER-MIX  AEQ MP-10  PORTABLE AUDIO MIXER","AMPLIFIER-MIX  AEQ MP-10  PORTABLE AUDIO MIXER","IMP17/10789"]
["AMPLIFIER-MIX  AEQ MP-10  PORTABLE AUDIO MIXER","AMPLIFIER-MIX  AEQ MP-10  PORTABLE AUDIO MIXER"]
["AMPLIFIER-MIX  AEQ MP-10  PORTABLE AUDIO MIXER","AMPLIFIER-MIX  AEQ MP-10  PORTABLE AUDIO MIXER"]
["AMPLIFIER-MIX  AEQ MP-10  PORTABLE AUDIO MIXER","AMPLIFIER-MIX  AEQ MP-10  PORTABLE AUDIO MIXER"]
["Control Remote Tascam RC-848 Remote control unit","Control Remote Tascam RC-848 Remote control unit"]
["TRANSMITTER,   MARTI RPT-30  REMOTE PICK-UP BRO","TRANSMITTER,   MARTI RPT-30  REMOTE PICK-UP BRO"]
["Panel (audio and visual)","TRANSMITTER,   MARTI RPT-30  REMOTE PICK-UP BRO"]
["Panel (audio and visual)","TRANSMITTER,   MARTI RPT-30  REMOTE PICK-UP BRO"]
[{"$error":"#N/A"},"Microphone Dynamic MCD70B"]
["Case, Rigidized Aluminium for rack  /w castorba","Case, Rigidized Aluminium for rack  /w castorba"]
["Console, Mixer Delta","Console, Mixer Delta"]
[{"$error":"#N/A"},"DVD Player, Telefunken"]
["RECEIVER, RAD  MARTI CR-10  REMOTE PICK-UP BROA","RECEIVER, RAD  MARTI CR-10  REMOTE PICK-UP BROA"]
["CODER'         MOSELEY SCG-9A  STL STEREO GENERATO","CODER'         MOSELEY SCG-9A  STL STEREO GENERATO",56704]
["Case, Rigidized Aluminium for rack  /w castorba","Case, Rigidized Aluminium for rack  /w castorba"]
["TRANSMITTER,   MOSELEY PCL6010  STUDIO-TRANSMIT","TRANSMITTER,   MOSELEY PCL6010  STUDIO-TRANSMIT","69152-9540"]
["LIGHT ASSEMBL  SABC  PORTABLE RAG LIGHTS  W/ ATLAS","LIGHT ASSEMBL  SABC  PORTABLE RAG LIGHTS  W/ ATLAS"]
["LIGHT ASSEMBL  SABC  PORTABLE RAG LIGHTS  W/ ATLAS","LIGHT ASSEMBL  SABC  PORTABLE RAG LIGHTS  W/ ATLAS"]
["LIGHT ASSEMBL  SABC  PORTABLE RAG LIGHTS  W/ ATLAS","LIGHT ASSEMBL  SABC  PORTABLE RAG LIGHTS  W/ ATLAS"]
["LIGHT ASSEMBL  SABC  PORTABLE RAG LIGHTS  W/ ATLAS","LIGHT ASSEMBL  SABC  PORTABLE RAG LIGHTS  W/ ATLAS","V-30001"]
["Mixer, Imix G3 Tieline Codec Solutions","SOUND MONITOR TANNOY"]
[{"$error":"#N/A"},"SOUND MONITOR TANNOY"]
["CASE, STORAGE  ALPINE A/SAB/23052001  RIGIDIZED","CASE, STORAGE  ALPINE A/SAB/23052001  RIGIDIZED"]
[{"$error":"#N/A"},"TELEVISION, GRUNDIG"]
["MONITOR, SOUN  RAMSA WS-A200E  COMPACT SPEAKER","MONITOR, SOUN  RAMSA WS-A200E  COMPACT SPEAKER",430785]
["\"MONITOR, SOUN  RAMSA WS-A200E  COMPACT SPEAKER\"","\"MONITOR, SOUN  RAMSA WS-A200E  COMPACT SPEAKER\"",180578]
["Case, Rigidized Aluminium for rack  /w castorba","Case, Rigidized Aluminium for rack  /w castorba"]
["RECEIVER-TRAN  TELOS ZEPHYR  D","RECEIVER-TRAN  TELOS ZEPHYR  D","920069100LD1287"]
[{"$error":"#N/A"},"LCD VIDEO MONITOR, PVISION PF19H3","A1246060"]
["Mixer, Glensoun GSGC5K ISND","Mixer, Glensoun GSGC5K ISND"]
[{"$error":"#N/A"},"RECEIVER,AEQ MPAC-02"]
[{"$error":"#N/A"},"RECEIVER,AEQ MPAC-02"]
[{"$error":"#N/A"},"RECEIVER,AEQ MPAC-02"]
[{"$error":"#N/A"},"RECEIVER,AEQ MPAC-02"]
[{"$error":"#N/A"},"RECEIVER,AEQ MPAC-02"]
[{"$error":"#N/A"},"RECEIVER,AEQ MPAC-02"]
["CONSOLE, SOUN  ALLEN & HEATH AH-GL22 12 CH POR","CONSOLE, SOUN  ALLEN & HEATH AH-GL22 12 CH POR","L2K21222218187"]
["Audio codec, AEQ Phonix AQ","Audio codec, AEQ Phonix AQ"]
["Metering Unit, SoundFusion","Metering Unit, SoundFusion"]
["\"Headphone, Rolls PM55 Personal Monitor\"","\"Headphone, Rolls PM55 Personal Monitor\""]
["RECORDER-REPR  SONY MZ-R37  PORTABLE MINI DISK REC","RECORDER-REPR  SONY MZ-R37  PORTABLE MINI DISK REC"]
["RECORDER-REPR  SONY MZ-R37  PORTABLE MINI DISK REC","RECORDER-REPR  SONY MZ-R37  PORTABLE MINI DISK REC"]
["Mixer, Shure FP31","Mixer, Shure FP31"]
["Moniter, Fostex 63O1B","Moniter, Fostex 63O1B"]
["Access Control, Comrex BRIC IP/POT","Access Control, Comrex BRIC IP/POT"]
["Microphone, Soundfield ST250 Studio Mic","Microphone, Soundfield ST250 Studio Mic"]
["TRANSMITTER,   AKG WMS300HT  UHF WIRELESS RADIO","TRANSMITTER,   AKG WMS300HT  UHF WIRELESS RADIO"]
["mixer, Glensound GSGC5K","mixer, Glensound GSGC5K"]
["Mixer Glensoun, ISDN","Mixer Glensoun, ISDN"]
["Mixer Glensoun , ISDN","Mixer Glensoun , ISDN"]
["mixer, Glensound GSGC5K","mixer, Glensound GSGC5K"]
["Mixer, Glensound GSGC5K - ISDN","Mixer, Glensound GSGC5K - ISDN",122]
["Recoder-reproducer, Negra","Recoder-reproducer, Negra"]
["TELEPHONE HYB  AEQ TH-02EX  MKII DUAL LINE DIG TEL","TELEPHONE HYB  AEQ TH-02EX  MKII DUAL LINE DIG TEL",45378]
["Receiver, AEQ ACD-6001","Receiver, AEQ ACD-6001"]
["Console, Glensound B100","Console, Glensound B100"]
[{"$error":"#N/A"},"TELESCOPE,KOWAT5-611"]
["CONSOLE, SOUN  ALLEN & HEATH WZ16:2DX  16 CH AU","CONSOLE, SOUN  ALLEN & HEATH WZ16:2DX  16 CH AU","WZ160222042693"]
["PROCESSOR, SI  ORBAN OPTIMOD TV8182A  COMPR","PROCESSOR, SI  ORBAN OPTIMOD TV8182A  COMPR","IMP17/V-2904"]
["Speaker, JBL","Speaker, JBL"]
["Speaker, JBL","Speaker, JBL"]
["Mixer,Shure FB33 Field Mixer","DISPLAY MONITOR, PHLIPS 105B","tyoo97900979"]
["Mixer, Glensound GSGC5K - ISDN  (476258 - 113737)","DISPLAY MONITOR, SAMSUNG SYNCMASTER753S","AN17HMDW830552P"]
[{"$error":"#N/A"},"HEADSETS, SENNHEISER HD 280-13"]
[{"$error":"#N/A"},"MICROPHONE, COLES ELECTROACOUSTISCS"]
[{"$error":"#N/A"},"MICROPHONE, COLES ELECTROACOUSTISCS"]
[{"$error":"#N/A"},"MICROPHONE, COLES ELECTROACOUSTISCS"]
[{"$error":"#N/A"},"MICROPHONE, COLES ELECTROACOUSTISCS"]
[{"$error":"#N/A"},"MICROPHONE, COLES ELECTROACOUSTISCS"]
[{"$error":"#N/A"},"MICROPHONE, COLES ELECTROACOUSTISCS"]
[{"$error":"#N/A"},"MICROPHONE, COLES ELECTROACOUSTISCS"]
["CONSOLE, SOUN  ALLEN & HEATH AH-GL22 12 CH POR","CONSOLE, SOUN  ALLEN & HEATH AH-GL22 12 CH POR","L2K21222218192"]
["CONSOLE, SOUN  ALLEN & HEATH AH-GL22 12 CH POR","CONSOLE, SOUN  ALLEN & HEATH AH-GL22 12 CH POR","L2K21222218189"]
["Flight Case","Flight Case"]
["Headphone, German Maestro","Headphone, German Maestro"]
["ANTENNA        SCALA TY-840  BROADBAND RUGGEDISED","ANTENNA        SCALA TY-840  BROADBAND RUGGEDISED","V-6116"]
[{"$error":"#N/A"},"SPEAKER STAND"]
["CONSOLE, SOUN  ALLEN & HEATH AH-GL22 12 CH POR","CONSOLE, SOUN  ALLEN & HEATH AH-GL22 12 CH POR","L2K21224214365"]
["CONSOLE, SOUN  ALLEN & HEATH WZ16:2DX  16 CH AU","CONSOLE, SOUN  ALLEN & HEATH WZ16:2DX  16 CH AU","WZ160222042689"]
["Portable Codec, AEQ MP AC-02","Portable Codec, AEQ MP AC-02"]
["CASE, STORAGE  ALPINE NOREF  RIGID ALUM TRANSIT","CASE, STORAGE  ALPINE NOREF  RIGID ALUM TRANSIT"]
["Television,Panasonic","Television,Panasonic"]
["Television,Panasonic","Television,Panasonic"]
["Television,Panasonic","Television,Panasonic"]
["Television,Panasonic","Television,Panasonic"]
["Television,Panasonic","Television,Panasonic"]
["Television,Panasonic","Television,Panasonic"]
["INTERCOMMUNIC  CLEAR-COM KB-211GM  2 CHANNEL SELEC","INTERCOMMUNIC  CLEAR-COM KB-211GM  2 CHANNEL SELEC",25955]
["INTERCOMMUNIC  CLEAR-COM KB-211GM  2 CHANNEL SELEC","INTERCOMMUNIC  CLEAR-COM KB-211GM  2 CHANNEL SELEC","IMP17/V-29525"]
["DISPLAY UNIT   LKM-926 RACKVIEW  15' LCD SCREEN MO","DISPLAY UNIT   LKM-926 RACKVIEW  15' LCD SCREEN MO","052CA0067"]
["Television, box","Television, box"]
["CABINET, EQUI  ITT NOREF  43U X 600 X 800 MODEM C","CABINET, EQUI  ITT NOREF  43U X 600 X 800 MODEM C"]
["RECORD PLAYER  THORENS TD-524  TURNTABLE W/ PU ARM","RECORD PLAYER  THORENS TD-524  TURNTABLE W/ PU ARM"]
["Equipment Rack","Equipment Rack"]
["CONSOLE, SOUN  ALLEN & HEATH AH-GL2200  12 CH P","CONSOLE, SOUN  ALLEN & HEATH AH-GL2200  12 CH P"]
["CONSOLE, SOUN  ALLEN & HEATH AH-GL2200  12 CH P","CONSOLE, SOUN  ALLEN & HEATH AH-GL2200  12 CH P"]
["Speaker, MONITOR SOUN  ELECTRO-VOICE FM-1502ER  DIRECTIVI","Speaker, MONITOR SOUN  ELECTRO-VOICE FM-1502ER  DIRECTIVI"]
["Clear-Com Intercom systems","Clear-Com Intercom systems"]
["Speaker, MONITOR SOUN  ELECTRO-VOICE FM-1502ER  DIRECTIVI","Speaker, MONITOR SOUN  ELECTRO-VOICE FM-1502ER  DIRECTIVI"]
["Speaker, MONITOR SOUN  ELECTRO-VOICE FM-1502ER  DIRECTIVI","Speaker, MONITOR SOUN  ELECTRO-VOICE FM-1502ER  DIRECTIVI"]
["REPRODUCER, S  REVOX C221  PROFESSIONAL COMPACT","REPRODUCER, S  REVOX C221  PROFESSIONAL COMPACT"]
["Speaker, Prosound","Speaker, Prosound"]
["MONITOR, SOUN  ELECTRO-VOICE FM-1502ER  DIRECTIVI","MONITOR, SOUN  ELECTRO-VOICE FM-1502ER  DIRECTIVI"]
["Speaker, Prosound","Speaker, Prosound"]
["Speaker, Prosound","Speaker, Prosound"]
["speaker, Prosound","speaker, Prosound"]
["Speaker, Ramsa A240 Subwoofer","Speaker, Ramsa A240 Subwoofer"]
["AMPLIFIER-MIX  SHURE FP42  PORTABLE STEREO MIC MIX","AMPLIFIER-MIX  SHURE FP42  PORTABLE STEREO MIC MIX","IMP17/6978"]
["AMPLIFIER-MIX  SHURE FP42  PORTABLE STEREO MIC MIX","AMPLIFIER-MIX  SHURE FP42  PORTABLE STEREO MIC MIX"]
["AMPLIFIER-MIX  SHURE FP42  PORTABLE STEREO MIC MIX","AMPLIFIER-MIX  SHURE FP42  PORTABLE STEREO MIC MIX"]
["Speaker, Ramsa A240 Subwoofer","Speaker, Ramsa A240 Subwoofer"]
["Speaker, Ramsa A240 Subwoofer","Speaker, Ramsa A240 Subwoofer"]
["Speaker, Ramsa A240 Subwoofer","Speaker, Ramsa A240 Subwoofer"]
["Transmitter, Samson","Transmitter, Samson"]
["Power Amplifier, Quad 520 f","Power Amplifier, Quad 520 f"]
["Receiver, Tru Diversity Receiver Samson SR22","Receiver, Tru Diversity Receiver Samson SR22"]
["Power Amplifier, Quad 520 f","Power Amplifier, Quad 520 f"]
["AS BGAN C10 HNS","AS BGAN C10 HNS",8080011]
["Professional Power Amplifier, Model 250G","Professional Power Amplifier, Model 250G",54113]
["Monitor, Prosound Subwoofer","Monitor, Prosound Subwoofer"]
["Monitor, Prosound Subwoofer","Monitor, Prosound Subwoofer"]
["MONITOR, SOUN  ELECTRO-VOICE SH-1810ER  SPEAKER","MONITOR, SOUN  ELECTRO-VOICE SH-1810ER  SPEAKER"]
["MONITOR, SOUN  ELECTRO-VOICE SH-1810ER  SPEAKER","MONITOR, SOUN  ELECTRO-VOICE SH-1810ER  SPEAKER"]
["mixer, Glensound GSGC5K","mixer, Glensound GSGC5K",113]
["mixer, Glensound GSGC5K","mixer, Glensound GSGC5K",157]
["Recorder, Sound Nagra","Recorder, Sound Nagra"]
["Portable Audio Codec, AEQ MPAC-02","Portable Audio Codec, AEQ MPAC-02"]
["Mixer, Glensound GSGC5K - ISDN","Mixer, Glensound GSGC5K - ISDN",149]
["\"STAND, MICROP  ATLAS TS-8  TABLE BANQUET STAND  3","\"STAND, MICROP  ATLAS TS-8  TABLE BANQUET STAND  3","V-3556"]
[{"$error":"#N/A"},"Portable Audio Codec, AEQ MPAC-02"]
["\"STAND, MICROP  ATLAS TS-8  TABLE BANQUET STAND  3","\"STAND, MICROP  ATLAS TS-8  TABLE BANQUET STAND  3","V-3555"]
["Computer, Desktop Case HP","Computer, Desktop Case HP","CZC5141T0X"]
["DEMODULATOR    MOSELEY SCD-9  STEREO DEMODULATOR","DEMODULATOR    MOSELEY SCD-9  STEREO DEMODULATOR",56004]
["Panel (audio and visual)","Panel (audio and visual)","V-35082"]
["\"RECEIVER, RAD  MOSELEY PCL6020  STUDIO-TRANSMIT\"","\"RECEIVER, RAD  MOSELEY PCL6020  STUDIO-TRANSMIT\"","69342-9540"]
["DECODER'       MOSELEY DSP-600","DECODER'       MOSELEY DSP-600","69275-9540"]
["\"RECEIVER, RAD  MOSELEY PCL6020  STUDIO-TRANSMIT\"","\"RECEIVER, RAD  MOSELEY PCL6020  STUDIO-TRANSMIT\"","69341-9540"]
["CODER'         MOSELEY DSP-600","CODER'         MOSELEY DSP-600","69304-9540"]
["\"TRANSMITTER,   MOSELEY PCL6010  STUDIO-TRANSMIT\"","\"TRANSMITTER,   MOSELEY PCL6010  STUDIO-TRANSMIT\"","69153-9540"]
["Mixer, Glensound GSGC5K - ISDN","Mixer, Glensound GSGC5K - ISDN"]
["\"TRANSMITTER,   MARTI RPT-30  REMOTE PICK-UP BRO\"","\"TRANSMITTER,   MARTI RPT-30  REMOTE PICK-UP BRO\""]
["\"Amplifier, Stereo Audio Amplifier DA212\"","\"Amplifier, Stereo Audio Amplifier DA212\""]
["Studio  Reverb Processor, The Audio edge SA212","Studio  Reverb Processor, The Audio edge SA212",0]
["MAST           CLARK QT12M/HP  TELESCOPIC SELF-SUP","MAST           CLARK QT12M/HP  TELESCOPIC SELF-SUP","GK41328-TRIPOD DSO"]
["MAST           CLARK QT12M/HP  TELESCOPIC SELF-SUP","MAST           CLARK QT12M/HP  TELESCOPIC SELF-SUP","GK41319-TRIPOD DSO"]
["\"Case, Rigidized Aluminium for rack  /w castorba\"","\"Case, Rigidized Aluminium for rack  /w castorba\""]
["\"CASE, STORAGE  ALPINE  RIGIDISED AL CUSTOM-DESIGN","\"CASE, STORAGE  ALPINE  RIGIDISED AL CUSTOM-DESIGN","VD436401"]
["Case, Rigidized Aluminium for rack  /w castorba","Case, Rigidized Aluminium for rack  /w castorba"]
["Flight case","Flight case"]
["Case, Rigidized Aluminium for rack  /w castorba","Case, Rigidized Aluminium for rack  /w castorba"]
["Case, Rigidized Aluminium for rack  /w castorba","Case, Rigidized Aluminium for rack  /w castorba"]
[{"$error":"#N/A"},"mixer glensound",152]
[{"$error":"#N/A"},"portable audio codec"]
["Case, Rigidized Aluminium for rack  /w castorba","Case, Rigidized Aluminium for rack  /w castorba"]
["\"TRANSMITTER,   MARTI STL-10/950  AURAL STUDIO-T\"","\"TRANSMITTER,   MARTI STL-10/950  AURAL STUDIO-T\""]
["Panel (audio and visual)","Panel (audio and visual)","V-35081"]
["RECORDER-REPR  TASCAM DA-88  DIGITAL AUDIO RECORDI","RECORDER-REPR  TASCAM DA-88  DIGITAL AUDIO RECORDI",290250]
["RECORDER-REPR  TASCAM DA-88  DIGITAL AUDIO RECORDI","RECORDER-REPR  TASCAM DA-88  DIGITAL AUDIO RECORDI",290263]
["RECORDER-REPR  TASCAM DA-88  DIGITAL AUDIO RECORDI","RECORDER-REPR  TASCAM DA-88  DIGITAL AUDIO RECORDI",290274]
["MAST           CLARK QT12M/HP  TELESCOPIC SELF-SUP","MAST           CLARK QT12M/HP  TELESCOPIC SELF-SUP","GK41323-TRIPOD DSO"]
[{"$error":"#N/A"},"flight case"]
[{"$error":"#N/A"},"portable audio codec"]
["Aircondition, Samsung ","Aircondition, Samsung "]
["Flight case","Flight case"]
["Digital Network Audio Transreceiver","Digital Network Audio Transreceiver"]
["\"Codec, Eagle AED Multi Format Dual ISDN\"","\"Codec, Eagle AED Multi Format Dual ISDN\"",44634]
["CASE, STORAGE  CUSTOM CASE  ALUMINIUM STORAGE CAS","CASE, STORAGE  CUSTOM CASE  ALUMINIUM STORAGE CAS"]
[{"$error":"#N/A"},"RANE HC 6, HEADPHONE CONSOLE",21003994134]
["\"REPRODUCER, S  TASCAM CD-450  COMPACT DISK (CD)\"","\"REPRODUCER, S  TASCAM CD-450  COMPACT DISK (CD)\"","9Y00257"]
[{"$error":"#N/A"},"PORTABLE AUSDIO CODEC"]
["\"CASE, STORAGE  ALPINE  RIGIDIZED ALUMINIUM CARR\"","\"CASE, STORAGE  ALPINE  RIGIDIZED ALUMINIUM CARR\""]
[{"$error":"#N/A"},"PORTABLE AUDIO CODEC"]
[{"$error":"#N/A"},"FLIGHT CASE"]
["Monitor, Fostex 6301BS audio","Monitor, Fostex 6301BS audio"]
[{"$error":"#N/A"},"PORTABLE CODED AUDIO"]
[{"$error":"#N/A"},"BEYERDYNAMIC HEADSET"]
[{"$error":"#N/A"}]
[{"$error":"#N/A"}]
["\"MICROPHONE, D  SHURE ULXP 24/58  HAND HELD RADI\"","\"MICROPHONE, D  SHURE ULXP 24/58  HAND HELD RADI\""]
["Amplifier, The audio edge DA212","Amplifier, The audio edge DA212"]
[{"$error":"#N/A"},"PORTALE AUDIO CODEC",43273]
[{"$error":"#N/A"},"AMPLIFIER STEREO AUDIO"]
["Monitor, Fostex 6301BS audio","Monitor, Fostex 6301BS audio"]
["\"Cupboard, Metal 4 Drawers\"","\"Cupboard, Metal 4 Drawers\"","V-16959"]
[{"$f":"VLOOKUP(#REF!,[1]AMR!A:B,3,0)","v":{"$error":"#REF!"}}]